bitfinex/quotes_ETHUSD_20250523
["timestamp","ask_amount","ask_price","bid_price","bid_amount"]
[1748036325925,3.93964464,2538.3,2538.2,27.8724]
[1748036326138,3.93964464,2538.3,2538.2,35.8724]
[1748036326328,3.93964464,2538.3,2538.2,50.0384]
[1748036326856,3.93964464,2538.3,2538.2,38.2334]
[1748036327053,3.93964464,2538.3,2538.2,22.8364]
[1748036327228,3.93964464,2538.3,2538.2,38.2334]
[1748036328250,3.93964464,2538.3,2538.2,8.0]
[1748036328472,3.93964464,2538.3,2538.2,37.565]
[1748036329478,3.93964464,2538.3,2538.2,29.565]
[1748036329874,3.93964464,2538.3,2538.2,14.167]
[1748036330169,4.80421805,2538.3,2538.2,29.565]
[1748036330378,3.93964464,2538.3,2538.2,29.565]
[1748036330545,3.93964464,2538.3,2538.2,14.167]
[1748036330748,3.93964464,2538.3,2538.2,29.565]
[1748036332359,3.93979985,2538.2,2538.1,0.05]
[1748036332559,3.93979985,2538.2,2538.1,15.449]
[1748036338528,3.93979985,2538.2,2538.1,0.05]
[1748036338835,4.73599985,2538.2,2538.1,15.406]
[1748036339191,16.54399985,2538.2,2538.1,15.406]
[1748036339394,19.07277058,2538.2,2538.1,15.406]
[1748036339934,19.07277058,2538.2,2538.1,0.05]
[1748036340675,19.87277058,2538.2,2538.1,0.05]
[1748036345622,22.19839732,2538.2,2538.1,0.05]
[1748036346493,22.74839732,2538.2,2538.1,0.05]
[1748036347697,30.74839732,2538.2,2538.1,0.05]
[1748036348324,4.73943139,2537.6,2537.5,15.36]
[1748036348533,17.41843544,2537.6,2537.5,15.36]
[1748036349613,17.41843544,2537.6,2537.2,14.171]
[1748036349833,4.73989733,2537.3,2537.2,29.532]
[1748036353023,16.55189733,2537.3,2537.2,29.532]
[1748036354160,3.94119733,2537.3,2537.2,29.532]
[1748036354302,3.94098902,2537.5,2537.3,0.7204]
[1748036354500,3.93979985,2538.2,2537.5,0.7204]
[1748036354942,3.94073139,2537.6,2537.5,0.7204]
[1748036355543,3.94006102,2538.1,2537.5,0.7204]
[1748036355835,3.94064528,2537.7,2537.6,1.48580267]
[1748036356036,3.94064528,2537.7,2537.6,16.84880267]
[1748036356340,3.94064528,2537.7,2537.6,19.89482941]
[1748036356903,3.94051379,2537.8,2537.6,19.89482941]
[1748036357102,3.94051379,2537.8,2537.7,9.98948294]
[1748036357303,3.93975687,2538.3,2537.7,9.98948294]
[1748036357529,3.93975687,2538.3,2537.8,0.7204]
[1748036357733,3.93975687,2538.3,2537.8,12.5334]
[1748036358041,3.9400872,2538.1,2537.9,8.7204]
[1748036358212,3.9398929,2538.2,2538.0,2.53713143]
[1748036358412,3.9398929,2538.2,2538.1,16.0824]
[1748036358827,3.93971712,2538.3,2538.1,15.362]
[1748036359028,1.94154744,2539.0,2538.2,26.7074]
[1748036359203,3.93903439,2538.7,2538.4,0.7204]
[1748036359814,3.93880835,2538.9,2538.6,0.7204]
[1748036360107,3.93861504,2539.0,2538.8,0.7204]
[1748036360611,3.938545,2539.1,2538.8,0.7204]
[1748036360806,0.05,2539.9,2539.1,0.7204]
[1748036361024,3.93786158,2539.5,2539.3,0.7204]
[1748036361518,3.93809317,2539.3,2539.2,14.175]
[1748036361705,3.93809317,2539.3,2539.2,29.534]
[1748036363059,3.93809317,2539.3,2539.2,14.175]
[1748036363258,3.93809317,2539.3,2539.2,29.534]
[1748036363424,5.11948245,2539.3,2539.2,29.534]
[1748036370542,5.11948245,2539.3,2539.2,14.175]
[1748036371082,5.91948245,2539.3,2539.2,14.175]
[1748036371562,3.93809317,2539.3,2539.2,14.175]
[1748036372083,3.93886875,2538.8,2538.3,14.8894]
[1748036372236,3.93917907,2538.6,2538.5,15.406]
[1748036373351,4.71957907,2538.6,2538.5,15.406]
[1748036373546,3.93979985,2538.2,2538.1,15.405]
[1748036373775,3.94011032,2538.0,2537.9,15.405]
[1748036374477,4.72051032,2538.0,2537.9,15.405]
[1748036376463,3.94011032,2538.0,2537.9,15.405]
[1748036376669,4.74011032,2538.0,2537.9,15.405]
[1748036391825,7.26196685,2538.0,2537.9,15.405]
[1748036395429,3.94073139,2537.6,2537.5,14.168]
[1748036395632,3.94073139,2537.6,2537.5,29.579]
[1748036399687,3.94073139,2537.6,2537.5,30.2994]
[1748036400544,3.94073139,2537.6,2537.5,14.168]
[1748036400839,3.94119733,2537.3,2537.1,0.05]
[1748036401000,3.94135267,2537.2,2537.1,0.05]
[1748036401198,4.74695267,2537.2,2537.1,0.05]
[1748036402842,3.94135267,2537.2,2537.1,0.05]
[1748036405001,3.94166338,2537.0,2536.9,15.364]
[1748036408049,3.94228494,2536.6,2536.5,0.7204]
[1748036408260,3.94228494,2536.6,2536.5,16.0844]
[1748036409649,3.94244037,2536.5,2536.4,14.174]
[1748036409852,3.94244037,2536.5,2536.4,29.539]
[1748036412016,5.20203884,2536.5,2536.4,29.54]
[1748036413123,3.94244037,2536.5,2536.4,29.54]
[1748036413461,0.7691,2537.4,2536.6,0.7204]
[1748036413701,3.94139331,2537.2,2537.0,0.7204]
[1748036413824,3.94139331,2537.2,2537.1,27.48572815]
[1748036415318,3.94051435,2537.8,2537.1,29.81260965]
[1748036415557,3.94104201,2537.4,2537.3,2.3268815]
[1748036415749,3.94082785,2537.6,2537.2,0.7204]
[1748036415957,3.94089275,2537.5,2537.3,3.21476033]
[1748036416230,3.94089275,2537.5,2537.4,14.178]
[1748036417230,3.94080671,2537.6,2537.4,14.178]
[1748036417424,3.94088669,2537.5,2537.4,14.178]
[1748036417630,3.94088669,2537.5,2537.4,15.98931603]
[1748036420468,3.93917107,2538.7,2537.5,0.55]
[1748036420760,3.94035539,2537.9,2537.7,0.55]
[1748036421070,3.94035539,2537.9,2537.7,1.50883829]
[1748036421283,3.93917907,2538.6,2537.7,1.50883829]
[1748036421426,3.94024676,2538.0,2537.7,1.50883829]
[1748036421760,3.94022208,2538.0,2537.7,1.50883829]
[1748036421975,3.94001093,2538.1,2537.9,4.83982752]
[1748036422127,3.94001093,2538.1,2537.9,6.74079054]
[1748036423875,3.93987737,2538.2,2538.0,1.2704]
[1748036424026,3.93987737,2538.2,2538.1,15.361]
[1748036424226,3.93987737,2538.2,2538.1,27.172]
[1748036424427,3.93973287,2538.3,2538.2,8.0]
[1748036424665,3.93973287,2538.3,2538.2,9.36824749]
[1748036425367,3.93979985,2538.2,2538.1,15.361]
[1748036425532,3.93979985,2538.2,2538.1,23.361]
[1748036427265,3.93979985,2538.2,2538.1,15.361]
[1748036428558,3.93995508,2538.1,2538.0,0.7204]
[1748036428880,3.93995508,2538.1,2538.0,24.0804]
[1748036429064,0.7951,2538.5,2538.0,24.0804]
[1748036429266,0.7951,2538.5,2538.0,23.36]
[1748036431166,3.93995508,2538.1,2538.0,23.36]
[1748036432348,3.93995508,2538.1,2538.0,15.36]
[1748036446821,3.93995508,2538.1,2538.0,17.68582026]
[1748036447025,3.93995508,2538.1,2538.0,20.94354229]
[1748036447324,3.93995508,2538.1,2538.0,18.61772203]
[1748036448318,3.93995508,2538.1,2538.0,15.36]
[1748036457021,3.93995508,2538.1,2538.0,16.0804]
[1748036466013,3.93995508,2538.1,2538.0,27.8894]
[1748036466217,3.93995508,2538.1,2538.0,27.169]
[1748036467449,3.94011032,2538.0,2537.9,22.171]
[1748036467826,3.94011032,2538.0,2537.9,49.338]
[1748036468570,3.94011032,2538.0,2537.9,37.529]
[1748036470344,3.94011032,2538.0,2537.9,50.0584]
[1748036472428,3.93992358,2538.2,2537.9,54.00839309]
[1748036472634,3.93993013,2538.2,2538.0,2.32582026]
[1748036473055,3.93995508,2538.1,2538.0,2.32582026]
[1748036475570,0.05,2538.9,2538.3,0.55]
[1748036475867,3.93913796,2538.7,2538.5,8.0]
[1748036476054,3.93896036,2538.8,2538.6,12.46968203]
[1748036476259,3.9390239,2538.7,2538.6,12.46968203]
[1748036476772,3.9887197,2538.9,2538.6,12.46968203]
[1748036476773,3.93898148,2538.8,2538.6,14.79550229]
[1748036477433,3.9888017,2538.9,2538.6,14.79550229]
[1748036477765,3.93886875,2538.8,2538.7,1.47955023]
[1748036477965,3.9390239,2538.7,2538.6,8.0]
[1748036478271,3.9390239,2538.7,2538.6,23.358]
[1748036478469,3.98878306,2538.9,2538.7,8.0]
[1748036478470,3.9389457,2538.8,2538.7,8.0]
[1748036478639,3.9389457,2538.8,2538.7,22.13482026]
[1748036478860,3.9389457,2538.8,2538.7,25.95614229]
[1748036479257,3.9389457,2538.8,2538.7,23.63032203]
[1748036479460,3.9389457,2538.8,2538.7,19.809]
[1748036479655,3.93917907,2538.6,2538.5,8.0]
[1748036479861,3.93917907,2538.6,2538.5,37.48982026]
[1748036481391,3.93917907,2538.6,2538.5,35.164]
[1748036481588,3.93917907,2538.6,2538.5,8.0]
[1748036481801,3.93917907,2538.6,2538.5,23.355]
[1748036482494,0.8154,2538.0,2537.7,0.46918611]
[1748036482701,4.75597611,2537.7,2537.6,0.46918611]
[1748036482886,3.94197414,2536.8,2536.7,1.25476346]
[1748036483072,4.75737414,2536.8,2536.7,1.25476346]
[1748036483598,5.62729533,2536.8,2536.7,1.25476346]
[1748036483959,5.62729533,2536.8,2536.7,1.15932069]
[1748036484184,3.9425958,2536.4,2536.3,1.5287202]
[1748036484385,4.75830671,2536.2,2536.1,0.05]
[1748036484602,5.62839696,2536.2,2536.1,0.05]
[1748036487793,4.75830671,2536.2,2536.1,0.05]
[1748036489291,3.94290671,2536.2,2536.1,0.05]
[1748036489672,0.76,2536.5,2536.1,0.05]
[1748036489673,4.70251869,2536.5,2536.1,0.05]
[1748036489877,3.94223106,2536.7,2536.1,8.05]
[1748036490106,3.94212953,2536.7,2536.3,8.0]
[1748036490316,3.94217657,2536.7,2536.3,8.0]
[1748036490501,3.94199909,2536.8,2536.3,8.0]
[1748036490673,3.94200781,2536.8,2536.3,8.0]
[1748036491302,3.94188483,2536.9,2536.3,8.0]
[1748036491503,3.94155266,2537.1,2536.5,8.0]
[1748036491701,3.94177776,2537.0,2536.6,15.389]
[1748036491883,3.94157563,2537.1,2536.7,8.0]
[1748036492412,3.94135667,2537.2,2536.7,8.0]
[1748036492607,1.94154744,2537.5,2536.8,2.3389]
[1748036492814,0.76,2537.2,2536.2,3.94999309]
[1748036493111,4.70290671,2536.2,2536.1,0.05]
[1748036493612,4.70290671,2536.2,2536.1,15.438]
[1748036494216,3.94290671,2536.2,2536.1,15.438]
[1748036494417,3.94267775,2536.4,2536.1,18.3996]
[1748036494629,3.94257071,2536.5,2536.1,18.3996]
[1748036494817,3.9421261,2536.8,2536.2,8.8307]
[1748036495008,3.94205007,2536.8,2536.2,12.77360636]
[1748036495710,3.94213528,2536.7,2536.2,8.8307]
[1748036495943,3.94213528,2536.7,2536.4,8.0]
[1748036496449,3.93186467,2536.7,2536.4,8.0]
[1748036496652,3.94190883,2536.9,2536.4,8.0]
[1748036497223,3.94198147,2536.8,2536.4,8.0]
[1748036498732,3.94190047,2536.9,2536.4,8.0]
[1748036498931,3.94190047,2536.9,2536.5,1.5892656]
[1748036499254,3.9417437,2537.0,2536.7,8.0]
[1748036501359,3.94156913,2537.1,2536.7,8.0]
[1748036502126,3.94170688,2537.0,2536.7,8.0]
[1748036503559,3.94155525,2537.1,2536.7,8.0]
[1748036503760,3.94155525,2537.1,2536.7,9.58726337]
[1748036504132,3.94171418,2537.0,2536.7,9.58726337]
[1748036504339,4.70114406,2537.4,2536.7,9.58726337]
[1748036504651,3.94173082,2537.0,2536.7,9.58726337]
[1748036505026,0.76,2537.7,2536.8,12.6457]
[1748036505229,0.76,2537.7,2536.9,0.55]
[1748036505477,3.94117272,2537.4,2537.0,19.02289246]
[1748036505671,3.94106271,2537.4,2537.1,15.388]
[1748036505846,3.94102432,2537.5,2537.2,3.44108925]
[1748036506351,0.76,2538.1,2537.2,3.44108925]
[1748036506352,3.9410429,2537.4,2537.2,3.44108925]
[1748036506666,3.9410429,2537.4,2537.1,15.388]
[1748036507167,3.94089689,2537.5,2537.1,15.388]
[1748036508169,3.9410506,2537.4,2537.1,15.388]
[1748036509492,3.94135267,2537.2,2537.1,15.388]
[1748036509778,3.94135267,2537.2,2537.1,23.388]
[1748036513572,3.94135267,2537.2,2537.1,23.386]
[1748036514773,3.94135267,2537.2,2537.0,14.178]
[1748036514774,3.94150802,2537.1,2537.0,14.178]
[1748036514947,3.94150802,2537.1,2536.2,9.96285855]
[1748036514948,3.94197414,2536.8,2536.7,15.386]
[1748036515269,3.94275125,2536.3,2536.2,22.9969]
[1748036515471,3.94275125,2536.3,2536.2,38.3829]
[1748036516150,3.94275125,2536.3,2536.2,50.1959]
[1748036517275,3.94275125,2536.3,2536.2,14.176]
[1748036517476,3.94275125,2536.3,2536.2,29.563]
[1748036522775,3.94275125,2536.3,2536.2,37.563]
[1748036527870,3.94237521,2536.6,2536.2,37.563]
[1748036528075,3.94260468,2536.4,2536.2,37.563]
[1748036530372,3.94260468,2536.4,2536.2,41.51299309]
[1748036531108,3.94247391,2536.5,2536.2,41.51299309]
[1748036531310,3.9427119,2536.4,2536.2,37.563]
[1748036532922,3.94199129,2536.8,2536.2,37.563]
[1748036533289,3.94272816,2536.4,2536.2,37.563]
[1748036533722,3.94272816,2536.4,2536.2,39.89161248]
[1748036534737,3.94275125,2536.3,2536.2,39.89161248]
[1748036536249,3.9425061,2536.5,2536.2,39.89161248]
[1748036536250,3.9426867,2536.4,2536.2,39.89161248]
[1748036536607,3.94166338,2537.0,2536.2,39.89161248]
[1748036536902,3.94274951,2536.4,2536.2,39.89161248]
[1748036537335,3.94175337,2537.0,2536.2,39.89161248]
[1748036537539,3.94181875,2536.9,2536.2,39.89161248]
[1748036537748,3.9423879,2536.6,2536.2,39.89161248]
[1748036538210,3.94245828,2536.5,2536.2,39.89161248]
[1748036538408,3.94245828,2536.5,2536.3,3.94999309]
[1748036538650,3.94236791,2536.6,2536.3,3.94999309]
[1748036539004,3.94236791,2536.6,2536.4,8.0]
[1748036539311,3.94236791,2536.6,2536.5,11.816]
[1748036539733,1.56465624,2536.6,2536.5,15.45]
[1748036539935,4.71910671,2536.2,2536.1,0.05]
[1748036540813,4.71988418,2535.7,2535.6,15.45]
[1748036542840,3.94430639,2535.3,2535.2,14.179]
[1748036543008,3.94430639,2535.3,2535.2,29.63]
[1748036543744,4.69460639,2535.3,2535.2,29.63]
[1748036544558,4.69460639,2535.3,2535.2,29.633]
[1748036545816,3.94430639,2535.3,2535.2,29.633]
[1748036546148,3.94430639,2535.3,2535.2,32.6013]
[1748036547230,3.94430639,2535.3,2535.2,29.633]
[1748036550756,4.69540639,2535.3,2535.2,14.179]
[1748036550928,4.69540639,2535.3,2535.2,29.635]
[1748036552956,4.69540639,2535.3,2535.2,14.179]
[1748036553161,5.55936231,2535.3,2535.2,29.646]
[1748036555092,4.80826231,2535.3,2535.2,14.179]
[1748036555296,4.73246197,2535.2,2535.1,0.05]
[1748036558196,5.28246197,2535.2,2535.1,0.05]
[1748036558368,4.73246197,2535.2,2535.1,0.05]
[1748036558662,7.26304967,2535.2,2535.1,0.05]
[1748036563085,4.73246197,2535.2,2535.1,0.05]
[1748036565506,3.94446197,2535.2,2535.1,0.05]
[1748036565655,3.94446197,2535.2,2535.1,0.8006]
[1748036565858,0.788,2535.8,2535.1,12.6246]
[1748036566182,3.94434986,2535.3,2535.1,12.6246]
[1748036566350,3.94434986,2535.3,2535.2,1.26246]
[1748036566879,3.94434986,2535.3,2535.2,11.824]
[1748036567612,3.94446197,2535.2,2535.1,0.05]
[1748036567761,3.94446197,2535.2,2535.1,15.521]
[1748036571295,3.94361682,2535.8,2535.3,0.55]
[1748036571588,3.94399526,2535.5,2535.4,41.481]
[1748036573870,3.94399526,2535.5,2535.4,29.658]
[1748036590628,11.94399526,2535.5,2535.4,29.598]
[1748036593218,3.94399526,2535.5,2535.4,29.598]
[1748036594359,4.74689526,2535.5,2535.4,14.188]
[1748036594515,4.74689526,2535.5,2535.4,29.598]
[1748036596803,3.94399526,2535.5,2535.4,29.598]
[1748036597003,4.87526921,2535.5,2535.4,15.41]
[1748036600224,3.94399526,2535.5,2535.4,15.41]
[1748036610308,3.94430639,2535.3,2535.2,0.6142]
[1748036610537,3.94446197,2535.2,2535.1,0.05]
[1748036610839,3.94446197,2535.2,2535.1,15.46]
[1748036611139,4.81067881,2535.2,2535.1,15.46]
[1748036612340,5.60827881,2535.2,2535.1,15.46]
[1748036612732,5.60827881,2535.2,2535.1,15.461]
[1748036612933,5.60827881,2535.2,2535.1,0.05]
[1748036613105,5.60827881,2535.2,2535.1,15.461]
[1748036613621,5.60827881,2535.2,2535.1,0.05]
[1748036618134,13.60827881,2535.2,2535.1,0.05]
[1748036622826,25.95747881,2535.2,2535.1,0.05]
[1748036628535,26.75747881,2535.2,2535.1,0.05]
[1748036629865,26.20747881,2535.2,2535.1,0.05]
[1748036630058,12.74446197,2535.2,2535.1,15.429]
[1748036630255,4.74446197,2535.2,2535.1,15.429]
[1748036630442,3.94446197,2535.2,2535.1,15.429]
[1748036630643,3.94446197,2535.2,2535.1,0.05]
[1748036630843,4.73333881,2535.2,2535.1,0.05]
[1748036632136,5.50953881,2535.2,2535.1,0.05]
[1748036633294,14.05953881,2535.2,2535.1,0.05]
[1748036634641,13.50953881,2535.2,2535.1,0.05]
[1748036634846,4.72066197,2535.2,2535.1,0.05]
[1748036635177,3.94446197,2535.2,2535.1,0.05]
[1748036636739,3.94446197,2535.2,2535.1,0.8117]
[1748036637065,3.94439401,2535.3,2535.1,0.8117]
[1748036637257,1.24217873,2535.5,2535.3,0.7617]
[1748036637584,5.18621741,2535.5,2535.4,2.49002996]
[1748036637786,1.24217873,2535.5,2535.4,10.49002996]
[1748036637994,3.94391802,2535.6,2535.5,0.7617]
[1748036638208,3.94391802,2535.6,2535.5,16.1407]
[1748036638384,3.94391802,2535.6,2535.5,20.09069309]
[1748036638570,3.94391802,2535.6,2535.5,31.91569309]
[1748036640397,3.94357668,2535.8,2535.5,31.91569309]
[1748036640574,3.94368418,2535.7,2535.6,0.7617]
[1748036640774,3.94368418,2535.7,2535.6,4.71169309]
[1748036641297,3.94368418,2535.7,2535.6,27.9637]
[1748036641697,3.94396179,2535.6,2535.4,9.72832996]
[1748036641900,3.94399526,2535.5,2535.4,9.72832996]
[1748036642101,3.94399526,2535.5,2535.4,17.10632996]
[1748036642668,3.94399526,2535.5,2535.3,0.7984]
[1748036642669,3.94415082,2535.4,2535.3,0.7984]
[1748036642868,3.94415082,2535.4,2535.3,15.378]
[1748036644168,3.94415082,2535.4,2535.3,16.1764]
[1748036644488,3.94415082,2535.4,2535.3,24.1764]
[1748036645781,3.94415082,2535.4,2535.3,8.7984]
[1748036645977,3.94415082,2535.4,2535.3,38.61039996]
[1748036647068,3.94415082,2535.4,2535.3,26.78739996]
[1748036647268,3.94430639,2535.3,2535.2,14.191]
[1748036647492,3.94430639,2535.3,2535.1,0.05]
[1748036647493,4.70696197,2535.2,2535.1,0.05]
[1748036650093,3.94446197,2535.2,2535.1,0.05]
[1748036650294,3.94446197,2535.2,2535.1,0.8561]
[1748036650505,3.94446197,2535.2,2535.1,2.12401]
[1748036652218,3.94361824,2535.8,2535.1,2.12401]
[1748036652394,3.94420802,2535.4,2535.2,15.453]
[1748036652591,3.94420802,2535.4,2535.3,0.8061]
[1748036652797,3.94420802,2535.4,2535.3,2.563801]
[1748036653518,3.94408445,2535.5,2535.4,0.8061]
[1748036653721,3.94220681,2536.7,2535.6,0.55]
[1748036653877,4.61178029,2536.6,2535.8,8.8061]
[1748036654080,3.94307937,2536.1,2535.8,8.8061]
[1748036654289,3.94309464,2536.1,2535.8,8.8061]
[1748036654491,3.9430033,2536.2,2535.9,0.55]
[1748036654698,3.9430033,2536.2,2536.0,0.8061]
[1748036654899,3.9430033,2536.2,2536.0,1.74171]
[1748036657393,3.94281439,2536.3,2536.0,1.74171]
[1748036657936,3.94281439,2536.3,2536.1,0.8045]
[1748036658087,3.94264745,2536.4,2536.2,27.271]
[1748036658424,3.94275125,2536.3,2536.2,27.271]
[1748036658589,3.94275125,2536.3,2536.2,30.172111]
[1748036658786,3.94266715,2536.4,2536.2,38.172111]
[1748036658992,3.94266715,2536.4,2536.3,9.3545]
[1748036661487,3.94266715,2536.4,2536.3,8.8045]
[1748036661691,3.94275125,2536.3,2536.2,18.350111]
[1748036662421,3.94275125,2536.3,2536.2,15.449]
[1748036663537,3.94321766,2536.0,2535.9,0.7524]
[1748036663852,3.94321766,2536.0,2535.9,15.447]
[1748036664764,3.94399526,2535.5,2535.4,14.188]
[1748036664969,3.94399526,2535.5,2535.4,37.635]
[1748036667614,3.94399526,2535.5,2535.4,41.58499309]
[1748036668814,3.94391021,2535.6,2535.4,42.37489309]
[1748036669016,3.94375333,2535.7,2535.4,42.37489309]
[1748036669229,3.94393889,2535.6,2535.4,42.37489309]
[1748036669493,3.94379306,2535.7,2535.5,3.94999309]
[1748036669855,3.94368418,2535.7,2535.6,0.55]
[1748036670031,3.94368418,2535.7,2535.6,1.3399]
[1748036671937,3.94368418,2535.7,2535.6,15.998]
[1748036672273,3.94368418,2535.7,2535.6,18.18613588]
[1748036673865,3.94368418,2535.7,2535.6,26.18613588]
[1748036677458,0.7625,2536.7,2535.8,0.55]
[1748036677663,1.24217873,2537.6,2536.2,0.55]
[1748036677664,3.94260785,2536.4,2536.2,0.55]
[1748036677961,4.70445244,2536.9,2536.4,8.0]
[1748036677962,3.94252119,2536.5,2536.4,8.0]
[1748036678140,3.94237518,2536.6,2536.4,22.183]
[1748036678349,3.94237518,2536.6,2536.4,34.002]
[1748036678945,3.94244037,2536.5,2536.4,34.002]
[1748036679855,3.94224057,2536.7,2536.4,34.552]
[1748036680070,3.94224057,2536.7,2536.6,1.382]
[1748036681346,3.94205217,2536.8,2536.6,9.382]
[1748036681845,3.94183017,2536.9,2536.7,0.55]
[1748036682045,3.94183017,2536.9,2536.8,23.531]
[1748036682282,3.94183017,2536.9,2536.8,26.0223]
[1748036683597,3.94183017,2536.9,2536.8,37.8373]
[1748036683897,3.94174533,2537.0,2536.9,8.0]
[1748036684047,3.94166338,2537.0,2536.9,8.55]
[1748036684543,3.94159238,2537.1,2536.9,8.55]
[1748036684544,3.94141792,2537.2,2536.9,8.55]
[1748036684750,3.94159617,2537.1,2537.0,0.55]
[1748036684959,3.94150802,2537.1,2537.0,0.55]
[1748036685488,3.94142652,2537.2,2537.0,0.55]
[1748036685694,4.71898452,2537.8,2537.1,0.8021]
[1748036685902,3.94126346,2537.3,2537.1,0.8021]
[1748036686205,3.94126346,2537.3,2537.2,0.55]
[1748036686410,3.94126346,2537.3,2537.2,0.52]
[1748036689227,3.94119733,2537.3,2537.2,0.52]
[1748036693519,3.94106707,2537.4,2537.2,0.52]
[1748036693732,19.814,2538.6,2537.4,1.3336]
[1748036693733,4.69088906,2538.2,2537.4,1.3336]
[1748036694050,3.94086022,2537.6,2537.5,26.541]
[1748036695899,0.05,2537.9,2537.5,38.49099309]
[1748036696102,3.94047995,2537.8,2537.6,8.55]
[1748036696303,3.99033224,2537.9,2537.6,8.55]
[1748036696560,0.05,2537.9,2537.8,8.55]
[1748036696854,0.05,2537.9,2537.8,26.0996527]
[1748036697576,0.05,2537.9,2537.8,26.9195527]
[1748036699141,0.05,2537.9,2537.8,38.7305527]
[1748036699318,3.99026557,2537.9,2537.8,38.7305527]
[1748036699838,3.99026557,2537.9,2537.8,11.3945527]
[1748036700039,3.99026557,2537.9,2537.8,38.7285527]
[1748036700462,3.99026557,2537.9,2537.8,38.92354271]
[1748036700811,3.99026557,2537.9,2537.8,2.0246527]
[1748036701019,3.94073139,2537.6,2537.5,14.177]
[1748036701208,3.94073139,2537.6,2537.5,29.698]
[1748036701915,3.94073139,2537.6,2537.5,14.177]
[1748036702270,4.73363139,2537.6,2537.5,14.177]
[1748036702422,4.73394201,2537.4,2537.3,15.521]
[1748036702614,3.94197414,2536.8,2536.7,14.173]
[1748036702826,3.94197414,2536.8,2536.7,29.694]
[1748036703026,3.94197414,2536.8,2536.7,37.694]
[1748036704855,3.94088987,2537.5,2536.7,37.694]
[1748036704856,3.94147454,2537.2,2536.7,38.244]
[1748036705062,0.7929,2537.7,2537.1,0.55]
[1748036705354,3.94096001,2537.5,2537.3,0.55]
[1748036705556,3.94119733,2537.3,2537.2,15.522]
[1748036707851,3.94095688,2537.5,2537.2,15.522]
[1748036708153,3.99034645,2537.9,2537.5,4.49088654]
[1748036708384,0.05,2537.9,2537.7,0.55]
[1748036708539,0.05,2537.9,2537.8,30.324]
[1748036708742,3.99026557,2537.9,2537.8,14.174]
[1748036709056,3.99026557,2537.9,2537.8,29.774]
[1748036709359,0.05,2537.9,2537.8,29.774]
[1748036709880,3.99026557,2537.9,2537.8,29.774]
[1748036710061,3.99026557,2537.9,2537.8,32.80435087]
[1748036710525,0.05,2537.9,2537.8,33.35435087]
[1748036710863,0.05,2537.9,2537.8,46.0989717]
[1748036711367,0.05,2537.9,2537.8,53.16535087]
[1748036711553,0.05,2537.9,2537.8,57.1057717]
[1748036712554,0.05,2537.9,2537.8,62.71810852]
[1748036715485,0.05,2537.9,2537.8,63.09394065]
[1748036717771,0.05,2537.9,2537.8,62.71810852]
[1748036717970,0.05,2537.9,2537.8,78.76810852]
[1748036720098,0.05,2537.9,2537.8,51.35710852]
[1748036720304,0.05,2537.9,2537.8,58.22068769]
[1748036720601,0.05,2537.9,2537.8,61.38610852]
[1748036720966,0.05,2537.9,2537.8,57.0987717]
[1748036721185,0.05,2537.9,2537.8,61.93610852]
[1748036721769,0.05,2537.9,2537.8,62.71110852]
[1748036722516,0.05,2537.9,2537.8,35.30710852]
[1748036722682,0.05,2537.9,2537.8,62.70910852]
[1748036722887,0.05,2537.9,2537.8,63.08441188]
[1748036724374,0.05,2537.9,2537.8,62.70910852]
[1748036727209,0.05,2537.9,2537.8,35.30710852]
[1748036727414,0.05,2537.9,2537.8,62.70810852]
[1748036732903,0.05,2537.9,2537.8,63.08348808]
[1748036735647,0.05,2537.9,2537.8,60.57092035]
[1748036739446,0.05,2537.9,2537.8,77.09107431]
[1748036739648,0.05,2537.9,2537.8,79.87853719]
[1748036740448,0.05,2537.9,2537.8,77.5537681]
[1748036740660,0.05,2537.9,2537.8,50.1527681]
[1748036740958,0.05,2537.9,2537.8,57.75988439]
[1748036741138,0.05,2537.9,2537.8,69.71990337]
[1748036741303,0.05,2537.9,2537.8,72.04467246]
[1748036741506,0.05,2537.9,2537.8,60.78967246]
[1748036741717,0.05,2537.9,2537.8,72.59467246]
[1748036742539,0.05,2537.9,2537.8,76.53509329]
[1748036742848,0.05,2537.9,2537.8,75.90992035]
[1748036743643,0.05,2537.9,2537.8,64.10492035]
[1748036743847,0.05,2537.9,2537.8,75.90992035]
[1748036745107,0.05,2537.9,2537.8,65.87992035]
[1748036750649,0.05,2537.9,2537.8,59.85992035]
[1748036754723,0.05,2537.9,2537.8,48.05492035]
[1748036754922,0.05,2537.9,2537.8,59.86092035]
[1748036760958,0.05,2537.9,2537.8,62.18568944]
[1748036761172,0.05,2537.9,2537.8,63.47138323]
[1748036763778,0.05,2537.9,2537.8,63.6690256]
[1748036764573,0.05,2537.9,2537.8,64.14027514]
[1748036764800,0.05,2537.9,2537.8,63.67758135]
[1748036767675,0.05,2537.9,2537.8,47.22204317]
[1748036767883,0.05,2537.9,2537.8,61.35281226]
[1748036768666,0.05,2537.9,2537.8,77.40281226]
[1748036770254,0.05,2537.9,2537.8,79.72758135]
[1748036771203,0.05,2537.9,2537.8,77.40281226]
[1748036771555,0.05,2537.9,2537.8,76.93156272]
[1748036772792,0.05,2537.9,2537.8,79.25633181]
[1748036773158,0.05,2537.9,2537.8,78.43333181]
[1748036778199,0.8661,2538.9,2538.6,0.55]
[1748036778396,0.8661,2538.9,2538.8,8.0]
[1748036778611,0.8661,2538.9,2538.8,22.167]
[1748036780909,0.8661,2538.9,2538.8,24.49176909]
[1748036781224,0.05,2538.9,2538.8,32.93063093]
[1748036781428,0.8161,2539.1,2539.0,11.93855848]
[1748036781603,0.8084,2539.6,2539.1,0.55]
[1748036781936,0.8084,2539.6,2539.4,0.55]
[1748036782136,0.8084,2539.6,2539.5,2.87476909]
[1748036782299,0.8084,2539.6,2539.5,10.87476909]
[1748036784436,4.74602797,2539.6,2539.5,10.87476909]